[Event "Titled Tuesday Blitz March 15 Early 2022"]
[White "Iskusnyh, Sergei"]
[Black "Gubanov, Oleg"]
[WhiteFideId "4120027"]
[BlackFideId "14115115"]
[WhiteElo "2492"]
[BlackElo "2080"]
[Result "1-0"]
[Round "06"]
[TimeControl "180+1"]
[Date "2022.03.15"]
[WhiteClock "0:00:31"]
[BlackClock "0:00:02"]

1. e4 {[%clk 0:03:00]}  Nf6 {[%clk 0:02:59]} 2. e5 {[%clk 0:03:00]}  Nd5 {[%clk 0:02:59]} 3. d4 {[%clk 0:03:00]}  d6 {[%clk 0:02:59]} 4. c4 {[%clk 0:03:00]}  Nb6 {[%clk 0:02:59]} 5. exd6 {[%clk 0:03:00]}  cxd6 {[%clk 0:02:59]} 6. Nc3 {[%clk 0:02:58]}  g6 {[%clk 0:03:00]} 7. Be3 {[%clk 0:02:58]}  Bg7 {[%clk 0:03:00]} 8. Rc1 {[%clk 0:02:59]}  O-O {[%clk 0:03:01]} 9. b3 {[%clk 0:02:59]}  e5 {[%clk 0:03:01]} 10. Be2 {[%clk 0:02:59]}  Nc6 {[%clk 0:02:53]} 11. Nf3 {[%clk 0:02:57]}  f5 {[%clk 0:02:40]} 12. dxe5 {[%clk 0:02:46]}  dxe5 {[%clk 0:02:40]} 13. c5 {[%clk 0:02:45]}  Nd7 {[%clk 0:02:34]} 14. Bc4+ {[%clk 0:02:42]}  Kh8 {[%clk 0:02:33]} 15. Ng5 {[%clk 0:02:42]}  f4 {[%clk 0:02:14]} 16. Ne6 {[%clk 0:02:34]}  Qe7 {[%clk 0:02:01]} 17. Nxf8 {[%clk 0:02:30]}  Qxf8 {[%clk 0:01:35]} 18. Bd2 {[%clk 0:02:29]}  Nxc5 {[%clk 0:01:30]} 19. O-O {[%clk 0:02:23]}  e4 {[%clk 0:01:27]} 20. Re1 {[%clk 0:02:13]}  Bf5 {[%clk 0:01:27]} 21. Nd5 {[%clk 0:02:08]}  f3 {[%clk 0:01:00]} 22. Bc3 {[%clk 0:01:51]}  Bxc3 {[%clk 0:00:49]} 23. Rxc3 {[%clk 0:01:50]}  Qg7 {[%clk 0:00:32]} 24. Qa1 {[%clk 0:01:45]}  Ne5 {[%clk 0:00:26]} 25. Rce3 {[%clk 0:01:40]}  Rd8 {[%clk 0:00:21]} 26. Nf4 {[%clk 0:01:36]}  Nxc4 {[%clk 0:00:19]} 27. Qxg7+ {[%clk 0:01:34]}  Kxg7 {[%clk 0:00:20]} 28. bxc4 {[%clk 0:01:35]}  fxg2 {[%clk 0:00:20]} 29. Kxg2 {[%clk 0:01:33]}  Rd4 {[%clk 0:00:18]} 30. Rc3 {[%clk 0:01:32]}  Rd2 {[%clk 0:00:18]} 31. Re2 {[%clk 0:01:28]}  Rd1 {[%clk 0:00:17]} 32. Nd5 {[%clk 0:01:26]}  Na4 {[%clk 0:00:11]} 33. Ra3 {[%clk 0:01:14]}  Nc5 {[%clk 0:00:05]} 34. Rxa7 {[%clk 0:01:11]}  Rc1 {[%clk 0:00:05]} 35. Ne3 {[%clk 0:01:04]}  Kf6 {[%clk 0:00:03]} 36. Rb2 {[%clk 0:01:02]}  Nd3 {[%clk 0:00:03]} 37. Rb6+ {[%clk 0:01:02]}  Kg5 {[%clk 0:00:02]} 38. Rbxb7 {[%clk 0:00:39]}  Ne1+ {[%clk 0:00:02]} 39. Kg3 {[%clk 0:00:37]}  Nf3 {[%clk 0:00:02]} 40. Rxh7 {[%clk 0:00:31]} 1-0


[Site "https://www.chess.com"]

[Event "Titled Tuesday Blitz March 15 Early 2022"]
[White "Jaskolka, Tomasz"]
[Black "Rosen, Eric"]
[WhiteFideId "1170791"]
[BlackFideId "2032562"]
[WhiteElo "2073"]
[BlackElo "2362"]
[Result "1-0"]
[Round "06"]
[TimeControl "180+1"]
[Date "2022.03.15"]
[WhiteClock "0:00:07"]
[BlackClock "0:00:02"]

1. d4 {[%clk 0:03:00]}  d5 {[%clk 0:02:52]} 2. Bf4 {[%clk 0:03:00]}  Nf6 {[%clk 0:02:52]} 3. e3 {[%clk 0:03:00]}  c5 {[%clk 0:02:53]} 4. c3 {[%clk 0:02:55]}  cxd4 {[%clk 0:02:51]} 5. exd4 {[%clk 0:02:55]}  Nc6 {[%clk 0:02:52]} 6. Nd2 {[%clk 0:02:55]}  Bf5 {[%clk 0:02:50]} 7. Ngf3 {[%clk 0:02:53]}  e6 {[%clk 0:02:50]} 8. Ne5 {[%clk 0:02:53]}  Bd6 {[%clk 0:02:41]} 9. Ndf3 {[%clk 0:02:52]}  O-O {[%clk 0:02:40]} 10. Be2 {[%clk 0:02:52]}  h6 {[%clk 0:02:39]} 11. h3 {[%clk 0:02:51]}  Qc7 {[%clk 0:02:39]} 12. O-O {[%clk 0:02:47]}  Nd7 {[%clk 0:02:39]} 13. Nxc6 {[%clk 0:02:43]}  Qxc6 {[%clk 0:02:27]} 14. Bxd6 {[%clk 0:02:42]}  Qxd6 {[%clk 0:02:28]} 15. Qd2 {[%clk 0:02:42]}  a6 {[%clk 0:02:27]} 16. Qe3 {[%clk 0:02:38]}  b5 {[%clk 0:02:25]} 17. Nd2 {[%clk 0:02:37]}  Rab8 {[%clk 0:02:23]} 18. b4 {[%clk 0:02:35]}  Rfc8 {[%clk 0:02:20]} 19. Nb3 {[%clk 0:02:33]}  Nb6 {[%clk 0:02:13]} 20. Nc5 {[%clk 0:02:32]}  Nc4 {[%clk 0:02:07]} 21. Bxc4 {[%clk 0:02:19]}  dxc4 {[%clk 0:02:08]} 22. Qe5 {[%clk 0:02:09]}  Qxe5 {[%clk 0:01:33]} 23. dxe5 {[%clk 0:02:09]}  a5 {[%clk 0:01:34]} 24. a3 {[%clk 0:02:03]}  Ra8 {[%clk 0:01:21]} 25. Nb7 {[%clk 0:01:48]}  Bd3 {[%clk 0:01:03]} 26. Rfe1 {[%clk 0:01:42]}  axb4 {[%clk 0:00:49]} 27. axb4 {[%clk 0:01:42]}  Kh7 {[%clk 0:00:39]} 28. Nd6 {[%clk 0:01:41]}  Rcb8 {[%clk 0:00:26]} 29. Rxa8 {[%clk 0:01:25]}  Rxa8 {[%clk 0:00:27]} 30. Nxb5 {[%clk 0:01:26]}  Ra2 {[%clk 0:00:24]} 31. Nd4 {[%clk 0:01:02]}  Kg6 {[%clk 0:00:15]} 32. g4 {[%clk 0:00:59]}  Ra3 {[%clk 0:00:14]} 33. b5 {[%clk 0:00:58]}  Ra2 {[%clk 0:00:09]} 34. Kg2 {[%clk 0:00:56]}  h5 {[%clk 0:00:08]} 35. Kg3 {[%clk 0:00:54]}  Kg5 {[%clk 0:00:08]} 36. h4+ {[%clk 0:00:22]}  Kg6 {[%clk 0:00:08]} 37. gxh5+ {[%clk 0:00:22]}  Kxh5 {[%clk 0:00:08]} 38. f3 {[%clk 0:00:19]}  Ra3 {[%clk 0:00:08]} 39. b6 {[%clk 0:00:18]}  Ra6 {[%clk 0:00:08]} 40. Kf4 {[%clk 0:00:14]}  Rxb6 {[%clk 0:00:07]} 41. Rg1 {[%clk 0:00:14]}  Kh6 {[%clk 0:00:07]} 42. Ra1 {[%clk 0:00:10]}  Rb2 {[%clk 0:00:06]} 43. Ra7 {[%clk 0:00:10]}  Kg6 {[%clk 0:00:05]} 44. h5+ {[%clk 0:00:10]}  Kxh5 {[%clk 0:00:05]} 45. Rxf7 {[%clk 0:00:11]}  Kg6 {[%clk 0:00:05]} 46. Re7 {[%clk 0:00:10]}  Bf5 {[%clk 0:00:03]} 47. Nxe6 {[%clk 0:00:10]}  Rc2 {[%clk 0:00:01]} 48. Rxg7+ {[%clk 0:00:10]}  Kh6 {[%clk 0:00:01]} 49. Kxf5 {[%clk 0:00:10]}  Rxc3 {[%clk 0:00:02]} 50. f4 {[%clk 0:00:10]}  Rc1 {[%clk 0:00:02]} 51. Rg6+ {[%clk 0:00:11]}  Kh7 {[%clk 0:00:01]} 52. Ng5+ {[%clk 0:00:09]}  Kh8 {[%clk 0:00:01]} 53. Kf6 {[%clk 0:00:08]}  c3 {[%clk 0:00:02]} 54. Kf7 {[%clk 0:00:06]}  Rh1 {[%clk 0:00:02]} 55. Rg8# {[%clk 0:00:07]} 1-0


[Site "https://www.chess.com"]

[Event "Titled Tuesday Blitz March 15 Early 2022"]
[White "Johnson, Ben"]
[Black "Iljin, Timofey"]
[WhiteFideId "2010917"]
[BlackFideId "14110180"]
[WhiteElo "2224"]
[BlackElo "2396"]
[Result "0-1"]
[Round "06"]
[TimeControl "180+1"]
[Date "2022.03.15"]
[WhiteClock "0:00:22"]
[BlackClock "0:01:19"]

1. Nf3 {[%clk 0:02:57]}  f5 {[%clk 0:03:00]} 2. d4 {[%clk 0:02:53]}  Nf6 {[%clk 0:03:00]} 3. c4 {[%clk 0:02:50]}  g6 {[%clk 0:03:01]} 4. Nc3 {[%clk 0:02:47]}  Bg7 {[%clk 0:03:01]} 5. g3 {[%clk 0:02:47]}  O-O {[%clk 0:03:02]} 6. Bg2 {[%clk 0:02:47]}  d6 {[%clk 0:03:03]} 7. O-O {[%clk 0:02:43]}  Qe8 {[%clk 0:03:04]} 8. Re1 {[%clk 0:02:40]}  e5 {[%clk 0:03:03]} 9. d5 {[%clk 0:02:19]}  a5 {[%clk 0:03:02]} 10. e4 {[%clk 0:02:14]}  fxe4 {[%clk 0:02:58]} 11. Ng5 {[%clk 0:02:14]}  Na6 {[%clk 0:02:57]} 12. Ncxe4 {[%clk 0:02:06]}  Nxe4 {[%clk 0:02:56]} 13. Nxe4 {[%clk 0:02:05]}  Bf5 {[%clk 0:02:56]} 14. Bg5 {[%clk 0:01:21]}  Bxe4 {[%clk 0:02:54]} 15. Bxe4 {[%clk 0:01:21]}  Nc5 {[%clk 0:02:54]} 16. Bc2 {[%clk 0:01:18]}  Qf7 {[%clk 0:02:52]} 17. Qe2 {[%clk 0:01:14]}  Rae8 {[%clk 0:02:45]} 18. Rad1 {[%clk 0:01:01]}  e4 {[%clk 0:02:36]} 19. b3 {[%clk 0:01:01]}  Nd3 {[%clk 0:02:25]} 20. Rf1 {[%clk 0:01:01]}  h6 {[%clk 0:02:19]} 21. Be3 {[%clk 0:01:01]}  Nb4 {[%clk 0:02:02]} 22. Bb1 {[%clk 0:00:59]}  g5 {[%clk 0:01:51]} 23. a3 {[%clk 0:00:56]}  Na6 {[%clk 0:01:50]} 24. Bd4 {[%clk 0:00:53]}  Bxd4 {[%clk 0:01:47]} 25. Rxd4 {[%clk 0:00:54]}  Nc5 {[%clk 0:01:48]} 26. b4 {[%clk 0:00:49]}  axb4 {[%clk 0:01:43]} 27. axb4 {[%clk 0:00:50]}  Qf6 {[%clk 0:01:36]} 28. Qe3 {[%clk 0:00:32]}  Nd3 {[%clk 0:01:31]} 29. Bxd3 {[%clk 0:00:30]}  exd3 {[%clk 0:01:30]} 30. Qxd3 {[%clk 0:00:30]}  Re1 {[%clk 0:01:22]} 31. h4 {[%clk 0:00:24]}  Qxf2+ {[%clk 0:01:19]} 32. Kh1 {[%clk 0:00:22]}  Rxf1+ {[%clk 0:01:19]} 0-1


[Site "https://www.chess.com"]

[Event "Titled Tuesday Blitz March 15 Early 2022"]
[White "Jumabayev, Rinat"]
[Black "Atakhan, Abtin"]
[WhiteFideId "13702661"]
[BlackFideId "22502203"]
[WhiteElo "2561"]
[BlackElo "2119"]
[Result "0-1"]
[Round "06"]
[TimeControl "180+1"]
[Date "2022.03.15"]
[WhiteClock "0:00:06"]
[BlackClock "0:00:03"]

1. Nf3 {[%clk 0:02:37]}  Nf6 {[%clk 0:02:59]} 2. c4 {[%clk 0:02:37]}  c5 {[%clk 0:02:56]} 3. Nc3 {[%clk 0:02:37]}  Nc6 {[%clk 0:02:56]} 4. e3 {[%clk 0:02:37]}  g6 {[%clk 0:02:54]} 5. d4 {[%clk 0:02:36]}  cxd4 {[%clk 0:02:54]} 6. exd4 {[%clk 0:02:35]}  d5 {[%clk 0:02:54]} 7. cxd5 {[%clk 0:02:34]}  Nxd5 {[%clk 0:02:53]} 8. Bc4 {[%clk 0:02:33]}  Nxc3 {[%clk 0:02:51]} 9. Qb3 {[%clk 0:02:32]}  Nd5 {[%clk 0:02:51]} 10. Bxd5 {[%clk 0:02:32]}  e6 {[%clk 0:02:52]} 11. Bxc6+ {[%clk 0:02:33]}  bxc6 {[%clk 0:02:52]} 12. O-O {[%clk 0:02:32]}  f6 {[%clk 0:02:52]} 13. Be3 {[%clk 0:02:31]}  Qd5 {[%clk 0:02:49]} 14. Rfc1 {[%clk 0:02:31]}  Kf7 {[%clk 0:02:36]} 15. Nd2 {[%clk 0:02:21]}  g5 {[%clk 0:02:34]} 16. Rc2 {[%clk 0:01:45]}  Be7 {[%clk 0:02:26]} 17. Rac1 {[%clk 0:01:46]}  Rd8 {[%clk 0:02:25]} 18. Rxc6 {[%clk 0:01:42]}  Qxb3 {[%clk 0:02:21]} 19. Nxb3 {[%clk 0:01:43]}  Bb7 {[%clk 0:02:22]} 20. Rc7 {[%clk 0:01:43]}  Bd5 {[%clk 0:02:21]} 21. Na5 {[%clk 0:01:29]}  Ke8 {[%clk 0:01:45]} 22. a3 {[%clk 0:01:15]}  Rd7 {[%clk 0:01:37]} 23. b4 {[%clk 0:01:14]}  Bd8 {[%clk 0:01:21]} 24. R7c5 {[%clk 0:01:04]}  Bb6 {[%clk 0:01:18]} 25. h4 {[%clk 0:01:01]}  gxh4 {[%clk 0:01:15]} 26. Kh2 {[%clk 0:01:01]}  Rg7 {[%clk 0:01:13]} 27. f3 {[%clk 0:01:01]}  Kd7 {[%clk 0:01:10]} 28. Bf4 {[%clk 0:00:49]}  Rag8 {[%clk 0:01:07]} 29. R1c2 {[%clk 0:00:41]}  Rg6 {[%clk 0:00:48]} 30. R5c3 {[%clk 0:00:32]}  h3 {[%clk 0:00:41]} 31. Kxh3 {[%clk 0:00:29]}  Bxa5 {[%clk 0:00:12]} 32. bxa5 {[%clk 0:00:29]}  e5 {[%clk 0:00:07]} 33. dxe5 {[%clk 0:00:26]}  fxe5 {[%clk 0:00:07]} 34. Rc7+ {[%clk 0:00:14]}  Ke6 {[%clk 0:00:07]} 35. Re2 {[%clk 0:00:13]}  Kf5 {[%clk 0:00:06]} 36. Bc1 {[%clk 0:00:03]}  e4 {[%clk 0:00:06]} 37. g4+ {[%clk 0:00:03]}  Ke5 {[%clk 0:00:04]} 38. Rxe4+ {[%clk 0:00:02]}  Bxe4 {[%clk 0:00:04]} 39. Re7+ {[%clk 0:00:02]}  Re6 {[%clk 0:00:04]} 40. Rxe6+ {[%clk 0:00:02]}  Kxe6 {[%clk 0:00:05]} 41. fxe4 {[%clk 0:00:03]}  Ke5 {[%clk 0:00:06]} 42. Be3 {[%clk 0:00:03]}  a6 {[%clk 0:00:05]} 43. Kh4 {[%clk 0:00:03]}  Kxe4 {[%clk 0:00:05]} 44. Bb6 {[%clk 0:00:03]}  Kf4 {[%clk 0:00:05]} 45. g5 {[%clk 0:00:03]}  Kf5 {[%clk 0:00:03]} 46. Be3 {[%clk 0:00:04]}  Kg6 {[%clk 0:00:03]} 47. Kg4 {[%clk 0:00:03]}  Rc8 {[%clk 0:00:02]} 48. Kf3 {[%clk 0:00:03]}  Rc4 {[%clk 0:00:03]} 49. Bd2 {[%clk 0:00:02]}  Rd4 {[%clk 0:00:02]} 50. Ke3 {[%clk 0:00:02]}  Ra4 {[%clk 0:00:02]} 51. Bb4 {[%clk 0:00:02]}  Kxg5 {[%clk 0:00:03]} 52. Kd4 {[%clk 0:00:02]}  h5 {[%clk 0:00:03]} 53. Kc5 {[%clk 0:00:02]}  h4 {[%clk 0:00:04]} 54. Kb6 {[%clk 0:00:03]}  h3 {[%clk 0:00:04]} 55. Kxa6 {[%clk 0:00:04]}  h2 {[%clk 0:00:04]} 56. Kb5 {[%clk 0:00:05]}  Rxb4+ {[%clk 0:00:04]} 57. axb4 {[%clk 0:00:04]}  h1=Q {[%clk 0:00:05]} 58. a6 {[%clk 0:00:04]}  Qa8 {[%clk 0:00:05]} 59. Ka5 {[%clk 0:00:04]}  Kf5 {[%clk 0:00:04]} 60. b5 {[%clk 0:00:05]}  Ke5 {[%clk 0:00:02]} 61. b6 {[%clk 0:00:06]}  Kd6 {[%clk 0:00:03]} 62. b7 {[%clk 0:00:05]}  Qa7 {[%clk 0:00:03]} 63. Kb5 {[%clk 0:00:06]}  Kc7 {[%clk 0:00:03]} 0-1


[Site "https://www.chess.com"]

[Event "Titled Tuesday Blitz March 15 Early 2022"]
[White "Khamzin, Olzhas"]
[Black "Wong, Yinn Long"]
[WhiteFideId "13701690"]
[BlackFideId "5707684"]
[WhiteElo "2194"]
[BlackElo "2055"]
[Result "1-0"]
[Round "06"]
[TimeControl "180+1"]
[Date "2022.03.15"]
[WhiteClock "0:01:42"]
[BlackClock "0:00:21"]

1. d4 {[%clk 0:02:54]}  Nf6 {[%clk 0:02:59]} 2. Nc3 {[%clk 0:02:55]}  d5 {[%clk 0:03:00]} 3. Bg5 {[%clk 0:02:55]}  Bf5 {[%clk 0:02:56]} 4. e3 {[%clk 0:02:55]}  e6 {[%clk 0:02:52]} 5. Bd3 {[%clk 0:02:55]}  Bxd3 {[%clk 0:02:52]} 6. cxd3 {[%clk 0:02:56]}  Nbd7 {[%clk 0:02:51]} 7. f4 {[%clk 0:02:56]}  Be7 {[%clk 0:02:49]} 8. Nf3 {[%clk 0:02:56]}  O-O {[%clk 0:02:40]} 9. O-O {[%clk 0:02:56]}  c5 {[%clk 0:02:36]} 10. Kh1 {[%clk 0:02:54]}  Rc8 {[%clk 0:02:30]} 11. Rc1 {[%clk 0:02:53]}  h6 {[%clk 0:02:22]} 12. Bh4 {[%clk 0:02:51]}  Ng4 {[%clk 0:02:17]} 13. Bxe7 {[%clk 0:02:49]}  Qxe7 {[%clk 0:02:18]} 14. Qd2 {[%clk 0:02:49]}  a6 {[%clk 0:02:05]} 15. h3 {[%clk 0:02:46]}  Ngf6 {[%clk 0:02:06]} 16. Ne5 {[%clk 0:02:45]}  cxd4 {[%clk 0:02:04]} 17. exd4 {[%clk 0:02:44]}  Qb4 {[%clk 0:02:01]} 18. Qf2 {[%clk 0:02:32]}  Nxe5 {[%clk 0:01:38]} 19. fxe5 {[%clk 0:02:33]}  Nd7 {[%clk 0:01:39]} 20. Nxd5 {[%clk 0:02:14]}  exd5 {[%clk 0:01:07]} 21. Rxc8 {[%clk 0:02:12]}  Qe7 {[%clk 0:00:48]} 22. Rxf8+ {[%clk 0:02:08]}  Nxf8 {[%clk 0:00:49]} 23. Rc1 {[%clk 0:02:00]}  Ne6 {[%clk 0:00:44]} 24. Rc8+ {[%clk 0:01:56]}  Kh7 {[%clk 0:00:44]} 25. Qf5+ {[%clk 0:01:56]}  g6 {[%clk 0:00:44]} 26. Qf6 {[%clk 0:01:56]}  Qxf6 {[%clk 0:00:41]} 27. exf6 {[%clk 0:01:57]}  g5 {[%clk 0:00:40]} 28. Rb8 {[%clk 0:01:56]}  b5 {[%clk 0:00:39]} 29. Rb6 {[%clk 0:01:46]}  Kg6 {[%clk 0:00:40]} 30. Rxa6 {[%clk 0:01:47]}  Nxd4 {[%clk 0:00:40]} 31. Rd6 {[%clk 0:01:44]}  Ne6 {[%clk 0:00:19]} 32. Rxd5 {[%clk 0:01:43]}  b4 {[%clk 0:00:20]} 33. Rb5 {[%clk 0:01:43]}  Kxf6 {[%clk 0:00:20]} 34. Rxb4 {[%clk 0:01:42]}  Ke5 {[%clk 0:00:21]} 35. a4 {[%clk 0:01:42]} 1-0


[Site "https://www.chess.com"]

[Event "Titled Tuesday Blitz March 15 Early 2022"]
[White "Kowalczyk, Pawel"]
[Black "Harikrishna, Pentala"]
[WhiteFideId "1130641"]
[BlackFideId "5007003"]
[WhiteElo "2344"]
[BlackElo "2574"]
[Result "1-0"]
[Round "06"]
[TimeControl "180+1"]
[Date "2022.03.15"]
[WhiteClock "0:00:08"]
[BlackClock "0:00:02"]

1. e4 {[%clk 0:02:58]}  c5 {[%clk 0:02:58]} 2. d4 {[%clk 0:02:58]}  cxd4 {[%clk 0:02:58]} 3. c3 {[%clk 0:02:58]}  d5 {[%clk 0:02:55]} 4. exd5 {[%clk 0:02:57]}  Qxd5 {[%clk 0:02:55]} 5. cxd4 {[%clk 0:02:55]}  Nf6 {[%clk 0:02:54]} 6. Nc3 {[%clk 0:02:53]}  Qd8 {[%clk 0:02:55]} 7. Bc4 {[%clk 0:02:51]}  e6 {[%clk 0:02:51]} 8. Nf3 {[%clk 0:02:48]}  Be7 {[%clk 0:02:52]} 9. O-O {[%clk 0:02:48]}  O-O {[%clk 0:02:52]} 10. Qe2 {[%clk 0:02:44]}  Nbd7 {[%clk 0:02:47]} 11. Bf4 {[%clk 0:02:39]}  Nb6 {[%clk 0:02:46]} 12. Bd3 {[%clk 0:02:35]}  Nbd5 {[%clk 0:02:45]} 13. Bg3 {[%clk 0:02:36]}  Nxc3 {[%clk 0:02:43]} 14. bxc3 {[%clk 0:02:35]}  b6 {[%clk 0:02:43]} 15. a4 {[%clk 0:02:26]}  Bb7 {[%clk 0:02:41]} 16. a5 {[%clk 0:02:24]}  Rc8 {[%clk 0:02:40]} 17. axb6 {[%clk 0:02:24]}  axb6 {[%clk 0:02:40]} 18. Rfc1 {[%clk 0:02:17]}  Qd5 {[%clk 0:02:01]} 19. Rab1 {[%clk 0:02:11]}  Qa5 {[%clk 0:01:26]} 20. c4 {[%clk 0:01:37]}  Bxf3 {[%clk 0:01:26]} 21. Qxf3 {[%clk 0:01:37]}  Rfd8 {[%clk 0:01:26]} 22. Be5 {[%clk 0:01:26]}  Nd7 {[%clk 0:01:08]} 23. Bxh7+ {[%clk 0:01:10]}  Kxh7 {[%clk 0:00:42]} 24. Qxf7 {[%clk 0:00:59]}  Nxe5 {[%clk 0:00:42]} 25. dxe5 {[%clk 0:00:51]}  Bg5 {[%clk 0:00:42]} 26. f4 {[%clk 0:00:35]}  Bh6 {[%clk 0:00:42]} 27. Qxe6 {[%clk 0:00:33]}  Qc5+ {[%clk 0:00:26]} 28. Kh1 {[%clk 0:00:32]}  Qd4 {[%clk 0:00:22]} 29. Rf1 {[%clk 0:00:27]}  Qxc4 {[%clk 0:00:16]} 30. Qxb6 {[%clk 0:00:26]}  Bxf4 {[%clk 0:00:15]} 31. e6 {[%clk 0:00:25]}  Bg5 {[%clk 0:00:08]} 32. Qa5 {[%clk 0:00:22]}  Qd5 {[%clk 0:00:04]} 33. Rb5 {[%clk 0:00:16]}  Qd3 {[%clk 0:00:05]} 34. Rg1 {[%clk 0:00:14]}  Be3 {[%clk 0:00:05]} 35. Rh5+ {[%clk 0:00:13]}  Kg8 {[%clk 0:00:05]} 36. e7 {[%clk 0:00:12]}  Re8 {[%clk 0:00:04]} 37. Qa2+ {[%clk 0:00:12]}  Qc4 {[%clk 0:00:04]} 38. Qxc4+ {[%clk 0:00:11]}  Rxc4 {[%clk 0:00:05]} 39. Ra1 {[%clk 0:00:09]}  Rxe7 {[%clk 0:00:05]} 40. g3 {[%clk 0:00:08]}  Rec7 {[%clk 0:00:04]} 41. Ra8+ {[%clk 0:00:08]}  Kf7 {[%clk 0:00:04]} 42. Rf5+ {[%clk 0:00:09]}  Kg6 {[%clk 0:00:04]} 43. Rf3 {[%clk 0:00:09]}  Rc1+ {[%clk 0:00:04]} 44. Kg2 {[%clk 0:00:09]}  Bg5 {[%clk 0:00:03]} 45. h4 {[%clk 0:00:09]}  Bf6 {[%clk 0:00:04]} 46. Kh3 {[%clk 0:00:09]}  Rh1+ {[%clk 0:00:03]} 47. Kg2 {[%clk 0:00:09]}  Rcc1 {[%clk 0:00:03]} 48. Rf2 {[%clk 0:00:09]}  Rcg1+ {[%clk 0:00:03]} 49. Kf3 {[%clk 0:00:09]}  Be5 {[%clk 0:00:02]} 50. Ra6+ {[%clk 0:00:08]} 1-0


[Site "https://www.chess.com"]

[Event "Titled Tuesday Blitz March 15 Early 2022"]
[White "Krasilnikov, Evgeni"]
[Black "Zomorrodian, Eilia"]
[WhiteFideId "4139739"]
[BlackFideId "12551805"]
[WhiteElo "2206"]
[BlackElo "2098"]
[Result "1-0"]
[Round "06"]
[TimeControl "180+1"]
[Date "2022.03.15"]
[WhiteClock "0:00:28"]
[BlackClock "0:00:45"]

1. e4 {[%clk 0:03:00]}  c5 {[%clk 0:02:59]} 2. c3 {[%clk 0:03:00]}  Nf6 {[%clk 0:02:59]} 3. e5 {[%clk 0:03:00]}  Nd5 {[%clk 0:03:00]} 4. d4 {[%clk 0:03:00]}  cxd4 {[%clk 0:03:01]} 5. cxd4 {[%clk 0:03:00]}  Nc6 {[%clk 0:03:01]} 6. Nf3 {[%clk 0:03:00]}  d6 {[%clk 0:03:00]} 7. Bc4 {[%clk 0:02:58]}  Nb6 {[%clk 0:03:00]} 8. Bb5 {[%clk 0:02:57]}  dxe5 {[%clk 0:02:59]} 9. Nxe5 {[%clk 0:02:57]}  Bd7 {[%clk 0:02:59]} 10. Nxd7 {[%clk 0:02:57]}  Qxd7 {[%clk 0:03:00]} 11. O-O {[%clk 0:02:56]}  e6 {[%clk 0:03:00]} 12. Nc3 {[%clk 0:02:54]}  Rd8 {[%clk 0:02:56]} 13. Be3 {[%clk 0:02:38]}  Be7 {[%clk 0:02:55]} 14. Qg4 {[%clk 0:02:36]}  O-O {[%clk 0:02:50]} 15. Rad1 {[%clk 0:02:34]}  Kh8 {[%clk 0:02:30]} 16. Bg5 {[%clk 0:02:23]}  Bxg5 {[%clk 0:02:22]} 17. Qxg5 {[%clk 0:02:23]}  Nd5 {[%clk 0:02:23]} 18. Rd3 {[%clk 0:02:12]}  a6 {[%clk 0:02:02]} 19. Bc4 {[%clk 0:01:53]}  Ndb4 {[%clk 0:01:42]} 20. Rd2 {[%clk 0:01:21]}  Nxd4 {[%clk 0:01:39]} 21. Rfd1 {[%clk 0:01:20]}  Nbc6 {[%clk 0:01:40]} 22. Ne4 {[%clk 0:01:16]}  e5 {[%clk 0:01:12]} 23. h4 {[%clk 0:00:50]}  b5 {[%clk 0:01:06]} 24. Bf1 {[%clk 0:00:46]}  Qd5 {[%clk 0:01:00]} 25. Nf6 {[%clk 0:00:38]}  Qe6 {[%clk 0:00:55]} 26. Nh5 {[%clk 0:00:30]}  h6 {[%clk 0:00:45]} 27. Qxg7# {[%clk 0:00:28]} 1-0


[Site "https://www.chess.com"]

[Event "Titled Tuesday Blitz March 15 Early 2022"]
[White "Lazavik, Denis"]
[Black "Matinian, Nikita"]
[WhiteFideId "13515110"]
[BlackFideId "24129100"]
[WhiteElo "2437"]
[BlackElo "2422"]
[Result "1-0"]
[Round "06"]
[TimeControl "180+1"]
[Date "2022.03.15"]
[WhiteClock "0:00:33"]
[BlackClock "0:00:37"]

1. d4 {[%clk 0:03:00]}  Nf6 {[%clk 0:02:59]} 2. c4 {[%clk 0:03:00]}  e6 {[%clk 0:02:59]} 3. Nf3 {[%clk 0:03:00]}  Bb4+ {[%clk 0:02:59]} 4. Bd2 {[%clk 0:03:00]}  a5 {[%clk 0:02:59]} 5. a3 {[%clk 0:02:49]}  Be7 {[%clk 0:02:57]} 6. Nc3 {[%clk 0:02:46]}  d5 {[%clk 0:02:54]} 7. Bf4 {[%clk 0:02:46]}  O-O {[%clk 0:02:48]} 8. e3 {[%clk 0:02:45]}  b6 {[%clk 0:02:43]} 9. Rc1 {[%clk 0:02:42]}  Ba6 {[%clk 0:02:34]} 10. cxd5 {[%clk 0:02:04]}  Bxf1 {[%clk 0:02:33]} 11. Kxf1 {[%clk 0:02:05]}  exd5 {[%clk 0:02:18]} 12. Qb3 {[%clk 0:02:04]}  c5 {[%clk 0:02:14]} 13. Ke2 {[%clk 0:02:03]}  Nc6 {[%clk 0:02:03]} 14. Rhd1 {[%clk 0:02:02]}  cxd4 {[%clk 0:01:47]} 15. exd4 {[%clk 0:01:51]}  Bd6 {[%clk 0:01:26]} 16. Bg5 {[%clk 0:01:42]}  h6 {[%clk 0:01:21]} 17. Bxf6 {[%clk 0:01:38]}  Qxf6 {[%clk 0:01:22]} 18. Nxd5 {[%clk 0:01:21]}  Qe6+ {[%clk 0:01:20]} 19. Kf1 {[%clk 0:01:21]}  Ne7 {[%clk 0:00:57]} 20. Nxe7+ {[%clk 0:01:20]}  Bxe7 {[%clk 0:00:58]} 21. Qxe6 {[%clk 0:01:18]}  fxe6 {[%clk 0:00:57]} 22. Rc6 {[%clk 0:01:19]}  b5 {[%clk 0:00:56]} 23. Rxe6 {[%clk 0:01:18]}  Bf6 {[%clk 0:00:57]} 24. Rb6 {[%clk 0:01:09]}  Rab8 {[%clk 0:00:57]} 25. Rxb8 {[%clk 0:01:09]}  Rxb8 {[%clk 0:00:58]} 26. Ke2 {[%clk 0:01:10]}  b4 {[%clk 0:00:57]} 27. a4 {[%clk 0:00:47]}  b3 {[%clk 0:00:58]} 28. Kd3 {[%clk 0:00:42]}  Rb4 {[%clk 0:00:58]} 29. Kc3 {[%clk 0:00:42]}  Kf7 {[%clk 0:00:52]} 30. Re1 {[%clk 0:00:40]}  Kg6 {[%clk 0:00:37]} 31. Ne5+ {[%clk 0:00:34]}  Kf5 {[%clk 0:00:37]} 32. Nc6 {[%clk 0:00:34]}  Rxa4 {[%clk 0:00:37]} 33. Kxb3 {[%clk 0:00:33]} 1-0


[Site "https://www.chess.com"]